Workbook

Sheet Лист1
C1: Примерное двухнедельное меню
C2: для организации питания детей в МБДОУ детский сад
A4: День 1 - ый
A5: Наименование блюд и | C5: Масса | D5: Кол - во | E5: Кол - во | F5: Пищевые вещества | I5: Энергетическая | J5: Витамин | K5: Сборник рецептур
A6: продуктов | C6: порции | D6: (в гр ) | E6: (в гр ) | I6: ценность
D7: брутто | E7: нетто | F7: белки | G7: жиры | H7: угл-ды | I7: Ккал | J7: С
B8: ЗАВТРАК с 8:30 до 9:00
A9: Каша "Дружба" молочная с маслом | C9: 200/5 | F9: 5.20 | G9: 7.10 | H9: 23.20 | I9: 177.50 | J9: 0.21 | K9: ТТК №7
B10: Крупа рисовая | D10: 15.00 | E10: 15.00
B11: Крупа пшенная | D11: 11.00 | E11: 11.00
B12: Молоко | D12: 102.00 | E12: 102.00
B13: Вода | D13: 70.00 | E13: 70.00
B14: Сахар | D14: 5.00 | E14: 5.00
B15: Соль | D15: 1.00 | E15: 1.00
B16: Масло сливочное | D16: 5.00 | E16: 5.00
A17: Кофейный напиток с молоком | C17: 180 | F17: 1.22 | G17: 1.34 | H17: 11.94 | I17: 65.00 | J17: 0.19 | K17: №395 Дели2010
B18: Кофейный напиток | D18: 2.50 | E18: 2.50
B19: Сахар | D19: 10.00 | E19: 10.00
B20: Молоко | D20: 90.00 | E20: 90.00
B21: Вода | D21: 108.00 | E21: 108.00
A22: Бутерброд с маслом сливочным | C22: 30/5 | F22: 2.30 | G22: 4.50 | H22: 15.40 | I22: 111.00 | K22: №1 Дели2010
B23: Батон нарезной | D23: 30.00 | E23: 30.00
B24: Масло сливочное | D24: 5.00 | E24: 5.00
A25: Итого: | C25: 420 | F25: =SUM(F8:F24) -> 8.72 | G25: =SUM(G8:G24) -> 12.94 | H25: =SUM(H8:H24) -> 50.54 | I25: =SUM(I8:I24) -> 353.50 | J25: =SUM(J8:J24) -> 0.40
B26: 2 - ой ЗАВТРАК с 10:00 до 10:30
A27: Сок | C27: 95 | D27: 95 | E27: 95 | F27: 0.30 | G27: 0.00 | H27: 12.00 | I27: 49.00 | J27: 1.00 | K27: №399Дели2010
A28: фруктовый
A29: Итого: | C29: =SUM(C27:C27) -> 95 | F29: =SUM(F27) -> 0.30 | G29: =SUM(G27) -> 0.00 | H29: =SUM(H27) -> 12.00 | I29: =SUM(I27) -> 49.00 | J29: =SUM(J27) -> 1.00
B30: ОБЕД с 11:30 до 13.00
A31: салат из моркови с сахаром | C31: 60 | F31: 0.70 | G31: 0.05 | H31: 6.30 | I31: 28.00 | J31: 1.15 | K31: стр56,сб1996
B32: морковь | D32: 72.00 | E32: 58.00
B33: сахар | D33: 2.00 | E33: 2.00
A34: Суп вермишелевый с картофелем и мясными фрикадельками | C34: 200/15 | F34: 4.86 | G34: 5.80 | H34: 15.24 | I34: 132.60 | J34: 5.28 | K34: №140,сбшк2004
B35: Фарш из говядины | D35: 17.1 | E35: 17.1
B36: Лук репчатый | D36: 1.79 | E36: 1.5
B37: Яйцо | D37: 1.7 | E37: 1.5
B38: Вода для фарша | D38: 1.7 | E38: 1.7
B39: Масса полуфабриката | E39: 20.1
B40: Картофель | D40: 100.20 | E40: 60.00
B41: Морковь | D41: 10.64 | E41: 8.00
B42: Лук репчатый | D42: 9.52 | E42: 8.00
B43: Макаронные изделия | D43: 8.00 | E43: 8.00
B44: Масло растительное | D44: 2.40 | E44: 2.40
B45: Соль | D45: 1.00 | E45: 1.00
B46: Вода | D46: 152.00 | E46: 152.00
A47: Биточки из говядины | C47: 70 | F47: 11 | G47: 10.8 | H47: 10.9 | I47: 184 | J47: 0.42 | K47: №451сбшк2004
B48: Фарш из говядины | D48: 51.9 | E48: 51.9
B49: Хлеб пшеничный 1с | D49: 12.6 | E49: 12.6
B50: Вода | D50: 16.8 | E50: 16.8
B51: Сухари панировочные | D51: 7 | E51: 7
B52: Соль | D52: 0.3 | E52: 0.3
B53: масса полуфабриката | E53: 86
B54: Масло растительное | D54: 3 | E54: 3
A55: Капуста тушеная | C55: 150 | F55: 3.3 | G55: 4.9 | H55: 14.1 | I55: 113.7 | J55: 24.7 | K55: №534сбшк2004
B56: Капуста свежая | D56: 215 | E56: 172
B57: Лук репчатый | D57: 7.14 | E57: 6
B58: Морковь | D58: 3.99 | E58: 3
B59: Мука пшеничная | D59: 2 | E59: 2
B60: Масло растительное | D60: 3 | E60: 3
B61: Масло сливочное | D61: 2 | E61: 2
B62: Сахар | D62: 4.5 | E62: 4.5
B63: Соль | D63: 0.5 | E63: 0.5
A64: Компот из сухофруктов | C64: 150 | F64: 0.70 | G64: 0.04 | H64: 20.60 | I64: 85.00 | J64: 0.30 | K64: №376Дели2010
B65: сухофрукты | D65: 15.30 | E65: 15.00
B66: Сахар | D66: 12.00 | E66: 12.00
B67: Вода | D67: 152.00 | E67: 152.00
A68: Хлеб пшеничный | C68: 50 | D68: 50.00 | E68: 50.00 | F68: 1.8 | G68: 0.4 | H68: 18 | I68: 82.5
A69: Итого: | C69: 682.5 | F69: =SUM(F31:F68) -> 22.36 | G69: =SUM(G31:G68) -> 21.99 | H69: =SUM(H31:H68) -> 85.14 | I69: =SUM(I31:I68) -> 625.80 | J69: =SUM(J31:J68) -> 31.85
B70: ПОЛДНИК с 15:00 до 15:40
A71: Фрукты свежие | C71: 70 | D71: 79.8 | E71: 70 | F71: 0.61 | G71: 0.14 | H71: 5.66 | I71: 26.36 | J71: 41.76 | K71: № 368 Дели 2010
A72: апельсин
A73: Кондитерские изделия | C73: 24.5 | D73: 24.50 | E73: 24.50 | F73: 0.56 | G73: 5.00 | H73: 12.00 | I73: 61.00
A74: (вафли)
A75: молоко | C75: 200 | K75: №392Дели2010
B76: молоко | D76: 200 | E76: 200 | F76: 5.6 | G76: 5 | H76: 9.4 | I76: 131
A77: Итого: | C77: 572.5 | F77: =SUM(F70:F76) -> 6.77 | G77: =SUM(G70:G76) -> 10.14 | H77: =SUM(H70:H76) -> 27.06 | I77: =SUM(I70:I76) -> 218.36 | J77: =SUM(J70:J76) -> 41.76
A78: ВСЕГО: | C78: =C25+C29+C69+C77 -> 1770 | F78: =F25+F29+F69+F77 -> 38.15 | G78: =G25+G29+G69+G77 -> 45.07 | H78: =H25+H29+H69+H77 -> 174.74 | I78: =I25+I29+I69+I77 -> 1246.66 | J78: =J25+J29+J69+J77 -> 75.01
A80: День 2- ой
A81: Наименование блюд и | C81: Масса | D81: Кол - во | E81: Кол - во | F81: Пищевые вещества | I81: Энергетическая | J81: Витамин | K81: Сборник
A82: продуктов | C82: порции | D82: (в гр ) | E82: (в гр ) | I82: ценность | K82: рецептур
D83: брутто | E83: нетто | F83: белки | G83: жиры | H83: угл-ды | I83: Ккал | J83: С
B84: ЗАВТРАК с 8:30 до 9:00
A85: Каша пшеничная молочная жидкая | C85: 200/5 | F85: 7.10 | G85: 8.20 | H85: 37.00 | I85: 250.00 | J85: 0.50 | K85: ТТК№3
B86: Крупа пшеничная | D86: 29.00 | E86: 29.00
B87: Молоко | D87: 101.00 | E87: 101.00
B88: вода | D88: 67.00 | E88: 67.00
B89: Сахар | D89: 5.00 | E89: 5.00
B90: Соль | D90: 1.00 | E90: 1.00
B91: Масло сливочное | D91: 5.00 | E91: 5.00
A92: Какао с молоком | C92: 180 | F92: 2.42 | G92: 2.58 | H92: 13.61 | I92: 87.30 | J92: 0.39 | K92: №397 Дели2010
B93: Какао-порошок | D93: 2.00 | E93: 2.00
B94: Сахар | D94: 10.00 | E94: 10.00
B95: Молоко | D95: 110.00 | E95: 110.00
B96: Вода | D96: 80.00 | E96: 80.00
A97: Бутерброд с сыром, маслом | C97: 40/7/5 | F97: 4.80 | G97: 7.20 | H97: 15.40 | I97: 146.00 | J97: 0.19 | K97: №3 Дели2010
B98: хлеб пшеничный | D98: 40.00 | E98: 40.00
B99: Сыр | D99: 7.14 | E99: 7.00
B100: Масло сливочное | D100: 5.00 | E100: 5.00
A101: Итого: | C101: 427 | F101: =SUM(F84:F100) -> 14.32 | G101: =SUM(G84:G100) -> 17.98 | H101: =SUM(H84:H100) -> 66.01 | I101: =SUM(I84:I100) -> 483.30 | J101: =SUM(J84:J100) -> 1.08
B102: 2 - ой ЗАВТРАК с 10:00 до 10:30
A103: Сок | C103: 95 | D103: 95 | E103: 95 | F103: 0.30 | G103: 0.00 | H103: 3.00 | I103: 13.00 | J103: 3.80 | K103: №399Дели2010
A104: фруктовый
A105: Итого: | C105: =SUM(C103) -> 95 | F105: =SUM(F103) -> 0.30 | G105: =SUM(G103) -> 0.00 | H105: =SUM(H103) -> 3.00 | I105: =SUM(I103) -> 13.00 | J105: =SUM(J103) -> 3.80
B106: ОБЕД с 11:30 до 13:00
A107: Салат свекольный | C107: 60 | F107: 0.72 | G107: 0.05 | H107: 5.95 | I107: 20.80 | K107: стр563,сб1996
B108: свекла | D108: 60.00 | E108: 48.00
B109: Сахар | D109: 2.50 | E109: 2.50 | F109: 0.00 | G109: 0.00 | H109: 2.50 | I109: 9.50
B110: масло рафинированное | D110: 5.00 | E110: 5.00 | F110: 0.00 | G110: 5.00 | H110: 0.00 | I110: 45.00
A111: Борщ со свежей капустой, картофелем на м/б,со сметаной | C111: 200/10 | F111: 1.50 | G111: 3.90 | H111: 9.50 | I111: 79.00 | J111: 6.36 | K111: №110, сб шк2004
B112: Капуста свежая | D112: 20.00 | E112: 16.00
B113: Картофель | D113: 26.72 | E113: 16.00
B114: Морковь | D114: 10.64 | E114: 8.00
B115: Лук репчатый | D115: 9.52 | E115: 8.00
B116: Свекла | D116: 43.52 | E116: 32.00
B117: Сахар | D117: 2.40 | E117: 2.40
B118: Томат-паста | D118: 1.00 | E118: 1.00
B119: Масло растительное | D119: 3.00 | E119: 3.00
B120: Сметана | D120: 10.00 | E120: 10.00
B121: Соль | D121: 1.60 | E121: 1.60
B122: Вода | D122: 160.00 | E122: 160.00
A123: Плов из отварной говядины | C123: 200 | F123: 15.60 | G123: 15.00 | H123: 28.00 | I123: 309.50 | J123: 0.65 | K123: №443,сбшк2004
B124: Говядина | D124: 52.00 | E124: 52.0
B125: масса вареного мяса | E125: 32.0
B126: Масло растительное | D126: 8.0 | E126: 8.0
B127: Лук репчатый | D127: 11.9 | E127: 10.0
B128: Морковь | D128: 17.3 | E128: 13.0
B129: Крупа рисовая | D129: 57.0 | E129: 57.0
B130: вода | D130: 86.0 | E130: 86.0
B131: Соль | D131: 2.0 | E131: 2.0
B132: масса гарнира | E132: 168.0
A133: Кисель | C133: 150 | H133: 15.00 | I133: 60.00 | K133: № 648, сб шк2004
B134: Кисель-концентрат | D134: 18.00 | E134: 18.00
B135: вода | D135: 150.00 | E135: 150.00
B136: Сахар | D136: 7.50 | E136: 7.50
A137: Хлеб пшеничный 1с | C137: 37.5 | D137: 37.50 | E137: 37.50 | F137: 1.8 | G137: 0.4 | H137: 18 | I137: 82.5
A138: Итого: | C138: 647.5 | F138: =SUM(F106:F137) -> 19.62 | G138: =SUM(G106:G137) -> 24.35 | H138: =SUM(H106:H137) -> 78.95 | I138: =SUM(I106:I137) -> 606.30 | J138: =SUM(J106:J137) -> 7.01
B139: ПОЛДНИК с 15:00 до 15:40
A140: Кондитерские изделия | C140: 35 | D140: 35.00 | E140: 35.00 | F140: 1.00 | G140: 4.00 | H140: 3.70 | I140: 54.80
A141: (печенье)
A142: Фрукты свежие | C142: 70 | D142: 79.8 | E142: 70 | F142: 0.28 | G142: 0.28 | H142: 6.96 | I142: 31.49 | J142: 6.96 | K142: № 368 Дели 2010
A143: яблоко
A144: йогурт | C144: 110 | F144: 4.60 | G144: 3.30 | H144: 6.40 | I144: 74.00 | J144: 0.00 | K144: №401 Дели2010
B145: йогурт | D145: 110 | E145: 100
A146: Итого: | C146: 574 | F146: =SUM(F139:F145) -> 5.88 | G146: =SUM(G139:G145) -> 7.58 | H146: =SUM(H139:H145) -> 17.06 | I146: =SUM(I139:I145) -> 160.29 | J146: =SUM(J139:J145) -> 6.96
A147: ВСЕГО: | C147: =C101+C105+C138+C146 -> 1743.5 | F147: =F101+F105+F138+F146 -> 40.12 | G147: =G101+G105+G138+G146 -> 49.91 | H147: =H101+H105+H138+H146 -> 165.02 | I147: =I101+I105+I138+I146 -> 1262.89 | J147: =J101+J105+J138+J146 -> 18.85
A149: День 3 - ий
A150: Наименование блюд и | C150: Масса | D150: Кол - во | E150: Кол - во | F150: Пищевые вещества | I150: Энергетическая | J150: Витамин | K150: Сборник
A151: продуктов | C151: порции | D151: (в гр ) | E151: (в гр ) | I151: ценность | K151: рецептур
D152: брутто | E152: нетто | F152: белки | G152: жиры | H152: угл-ды | I152: Ккал | J152: С
B153: ЗАВТРАК с 8:30 до 9:00
A154: Каша Геркулес молочная | C154: 200/5 | F154: 6.80 | G154: 8.90 | H154: 28.10 | I154: 220.00 | J154: 1.40 | K154: ТТК №9
B155: крупа геркулес | D155: 29.00 | E155: 29.00
B156: Молоко | D156: 100.00 | E156: 100.00
B157: Вода | D157: 50.00 | E157: 50.00
B158: Сахар | D158: 5.00 | E158: 5.00
B159: Соль | D159: 1.00 | E159: 1.00
B160: Масло сливочное | D160: 5.00 | E160: 5.00
A161: Чай с молоком,сахаром | C161: 180/10 | F161: 2.60 | G161: 2.30 | H161: 14.30 | I161: 89.00 | J161: 0.02 | K161: № 394 Дели2010
B162: Заварка | D162: 0.45 | E162: 0.45
B163: Сахар | D163: 10 | E163: 10
B164: Молоко | D164: 92 | E164: 90
B165: Вода | D165: 88 | E165: 88
A166: Бутерброд с маслом сливочным | C166: 40/5 | F166: 2.08 | G166: 0.48 | H166: 17.70 | I166: 85.60 | K166: №1 Дели2010
B167: хлеб пшеничный 1с | D167: 40.00 | E167: 40.00
B168: Масло сливочное | D168: 5.00 | E168: 5.00
A169: Итого: | C169: 430 | F169: =SUM(F153:F168) -> 11.48 | G169: =SUM(G153:G168) -> 11.68 | H169: =SUM(H153:H168) -> 60.10 | I169: =SUM(I153:I168) -> 394.60 | J169: =SUM(J153:J168) -> 1.42
B170: 2 - ой ЗАВТРАК с 10: до 10:30
A171: Сок | C171: 95 | D171: 95 | E171: 95 | F171: 0.01 | G171: 0.00 | H171: 2.00 | I171: 8.00 | J171: 1.00 | K171: 399Дели2010
A172: абрикосовый
A173: Итого: | C173: =SUM(C171) -> 95 | F173: =SUM(F171) -> 0.01 | G173: =SUM(G171) -> 0.00 | H173: =SUM(H171) -> 2.00 | I173: =SUM(I171) -> 8.00 | J173: =SUM(J171) -> 1.00
B174: ОБЕД с 11:30 до 13:00
A175: Салат витаминный | C175: 60 | F175: 0.90 | G175: 3.50 | H175: 8.00 | I175: 67.00 | J175: 10.20
B176: Капуста свежая | D176: 51.00 | E176: 42.00
B177: морковь | D177: 18.75 | E177: 15.00
B178: яблоки | D178: 15.00 | E178: 13.50
B179: сахар | D179: 2.00 | E179: 2.00
B180: масло растительное | D180: 2.00 | E180: 2.00
A181: Суп картофельный с горохом с мясными фрикадельками | C181: 200/15 | F181: 8.00 | G181: 4.20 | H181: 15.74 | I181: 132.00 | J181: 5.68 | K181: №139,сб шк2004
B182: Фарш из говядины | D182: 17.1 | E182: 17.1
B183: Лук репчатый | D183: 1.79 | E183: 1.5
B184: Яйцо | D184: 1.7 | E184: 1.5
B185: Вода для фарша | D185: 1.7 | E185: 1.7
B186: Масса полуфабриката | E186: 20.1
B187: Картофель | D187: 66.80 | E187: 40.00
B188: Горох | D188: 20.20 | E188: 20.00
B189: Морковь | D189: 10.64 | E189: 8.00
B190: Лук репчатый | D190: 9.52 | E190: 8.00
B191: Масло растительное | D191: 3.00 | E191: 3.00
B192: Соль | D192: 1.00 | E192: 1.00
B193: Вода | D193: 144.00 | E193: 144.00
A194: Рагу овощное с мясом | C194: 160/4 | F194: 11.00 | G194: 14.10 | H194: 25.00 | I194: 270.00 | J194: 0.33 | K194: №224, сбшк2004
B195: говядина | D195: 63.00 | E195: 63.00
B196: масса тушеного мяса | E196: 0.40
B197: Капуста свежая | D197: 65.25 | E197: 52.20
B198: Картофель | D198: 100.70 | E198: 60.30
B199: Лук репчатый | D199: 25.70 | E199: 21.60
B200: Морковь | D200: 47.88 | E200: 36.00
B201: Масло растительное | D201: 1.50 | E201: 1.50
B202: соус томатный: | D202: 54.00 | E202: 54.00
B203: Мука пшеничная | D203: 2.70 | E203: 2.70
... 672 more rows

Sheet Лист2

Sheet Лист3
